fUSD/lending_fUSD_20260412
["ID","MTS","AMOUNT","RATE_DAILY","PERIOD"]
[420335067,1775988637927,-282.62128968,0.00015,2]
[420335068,1775988637948,-582.57802036,0.00015,2]
[420335069,1775988637961,-7906.75379404,0.00015,2]
[420335070,1775988637984,-825.26934686,0.00015,2]
[420335071,1775988638000,-993.34152341,0.00015,2]
[420335128,1775988639987,-482.79510806,0.00015,2]
[420335129,1775988640264,-2852.19657638,0.00015,2]
[420335130,1775988640275,-418.82489194,0.00015,2]
[420335131,1775988640861,-4926.23470969,0.00015,2]
[420335138,1775988642884,-285.98407295,0.00014999,2]
[420335139,1775988642910,-500.0,0.00014999,2]
[420335140,1775988642944,-500.0,0.00014999,2]
[420335141,1775988642953,-500.0,0.00014999,2]
[420335142,1775988642983,-206.00983801,0.00014999,2]
[420335143,1775988642992,-120.69381785,0.00014999,2]
[420335144,1775988643019,-379.30618215,0.00014999,2]
[420335145,1775988643031,-532.11869876,0.00014999,2]
[420335146,1775988643057,-500.0,0.00014999,2]
[420335147,1775988643070,-500.0,0.00014999,2]
[420335148,1775988643087,-500.0,0.00014999,2]
[420335149,1775988643101,-500.0,0.00014999,2]
[420335150,1775988643114,-500.0,0.00014999,2]
[420335151,1775988643129,-3064.61945532,0.00015,2]
[420335152,1775988643150,-5642.70196642,0.00015,2]
[420335153,1775988643165,-2011.69999999,0.00015,2]
[420335154,1775988643202,-2236.64699899,0.00015,2]
[420335159,1775988645689,-11797.76807422,0.00015,2]
[420335160,1775988645730,-69815.43079457,0.00015,2]
[420335161,1775988645744,-879.21543249,0.00015068,2]
[420335162,1775988645761,-3445.68467404,0.0001508,2]
[420335163,1775988645774,-500.0,0.00015099,2]
[420335164,1775988645785,-500.0,0.00015099,2]
[420335165,1775988645800,-500.0,0.00015099,2]
[420335166,1775988645816,-500.0,0.00015099,2]
[420335167,1775988645825,-525.42712155,0.00015099,2]
[420335168,1775988645835,-500.0,0.00015099,2]
[420335169,1775988645852,-427.67335693,0.00015099,2]
[420335170,1775988645863,-500.0,0.00015099,2]
[420335171,1775988645873,-500.0,0.00015099,2]
[420335172,1775988645885,-500.0,0.00015099,2]
[420335173,1775988645899,-578.20924308,0.0001518,2]
[420335174,1775988645909,-1328.27659266,0.0001518,2]
[420335175,1775988645920,-174.61919141,0.0001518,2]
[420335176,1775988645933,-356.078142,0.000152,2]
[420335177,1775988645949,-150.0,0.00015467,2]
[420335178,1775988645959,-150.0,0.00015467,2]
[420335179,1775988645972,-1000.0,0.00015539,2]
[420335180,1775988645987,-165.59,0.00015542,2]
[420335181,1775988645997,-500.0,0.00015638,2]
[420335182,1775988646007,-192.0,0.00015684,2]
[420335183,1775988646016,-1377.42282659,0.00015728,2]
[420335184,1775988646030,-329.73592035,0.00015728,2]
[420335185,1775988646040,-255.0,0.00015779,2]
[420335186,1775988646049,-694.45901,0.0001584,2]
[420335187,1775988646059,-2500.0,0.0001584,2]
[420335188,1775988646069,-192.0,0.00015841,2]
[420335189,1775988646078,-166.2149,0.0001587,2]
[420335190,1775988646088,-166.2149,0.0001588,2]
[420335191,1775988646098,-500.0,0.0001589,2]
[420335192,1775988646107,-1212.564,0.000159,2]
[420335193,1775988646117,-5000.0,0.000159,2]
[420335195,1775988646128,-246.9967092,0.000159,2]
[420335197,1775988646138,-262.06737496,0.000159,2]
[420335198,1775988646147,-1756.15712448,0.000159,2]
[420335199,1775988646158,-407.9382302,0.000159,2]
[420335200,1775988646169,-299.50051686,0.000159,2]
[420335201,1775988646179,-216.08048739,0.000159,2]
[420335202,1775988646189,-1006.3432116,0.000159,2]
[420335203,1775988646199,-5382.10370961,0.000159,2]
[420335204,1775988646209,-2152.8397849,0.000159,2]
[420335205,1775988646220,-150.0,0.000159,2]
[420335206,1775988646229,-192.0,0.0001592,2]
[420335207,1775988646240,-694.45901,0.0001594,2]
[420335208,1775988646257,-500.0,0.00015973,2]
[420335209,1775988646267,-501.04014053,0.00015973,2]
[420335210,1775988646276,-500.0,0.00015973,2]
[420335211,1775988646291,-182.6557513,0.00015984,2]
[420335212,1775988646305,-248.03599909,0.0001599,2]
[420335213,1775988646695,-248.03599909,0.0001599,2]
[420335214,1775988646713,-257.58,0.00015999,2]
[420335215,1775988646729,-150.0,0.00015999,2]
[420335216,1775988646739,-500.0,0.00015999,2]
[420335217,1775988646748,-500.0,0.00015999,2]
[420335218,1775988646762,-500.0,0.00015999,2]
[420335219,1775988646776,-500.0,0.00015999,2]
[420335220,1775988646785,-810.0,0.00016,5]
[420335221,1775988646806,-647.0,0.00016,5]
[420335222,1775988646817,-150.0,0.00016,2]
[420335223,1775988646828,-150.0,0.00016,2]
[420335224,1775988646844,-150.0,0.00016,2]
[420335225,1775988646863,-297067.30111555,0.00016,2]
[420335226,1775988647704,-311526.78872717,0.00016,2]
[420335227,1775988647716,-931650.34793083,0.00016,2]
[420335228,1775988647803,-444.58999998,0.00016,2]
[420335229,1775988647816,-2062.70977283,0.00016,2]
[420335230,1775988647829,-1165.00275632,0.00016,2]
[420335231,1775988647860,-35068.7024931,0.00016,2]
[420335232,1775989004992,1500.0,0.0003013,120]
[420335233,1775989056844,500.0,0.0003013,120]
[420335238,1775989290306,2000.0,0.00030137,120]
[420335239,1775989298760,2000.0,0.00030137,120]
[420335240,1775989305085,2000.0,0.00030137,120]
[420335242,1775989719210,1108.58,0.00029452,120]
[420335243,1775989789157,500.0,0.0003013,120]
[420335244,1775989805027,475.3,7.119e-05,2]
[420335245,1775989805402,475.3,7.494e-05,2]
[420335246,1775989805522,475.3,7.868e-05,2]
[420335247,1775989805670,475.3,8.243e-05,2]
[420335264,1775989832482,-475.3,8.618e-05,2]
[420335266,1775989832499,-146.64024213,8.992e-05,2]
[420335269,1775989832524,-250.7070206,8.992e-05,2]
[420335271,1775989832541,-77.95273727,8.992e-05,2]
[420335273,1775989832553,-475.3,9.367e-05,2]
[420335275,1775989832565,-56.64573713,9.742e-05,2]
[420335278,1775989832594,-418.65426287,9.742e-05,2]
[420335279,1775989832606,-475.3,0.00010116,2]
[420335280,1775989832617,-475.3,0.00010491,2]
[420335281,1775989832638,-475.3,0.00010866,2]
[420335282,1775989832647,-475.3,0.0001124,2]
[420335283,1775989832660,-475.3,0.00011615,2]
[420335284,1775989832675,-475.3,0.0001199,2]
[420335285,1775989832685,-150.0,0.00012,2]
[420335286,1775989832698,-475.3,0.00012365,2]
[420335287,1775989832709,-475.3,0.00012739,2]
[420335288,1775989832721,-250.0,0.00013,2]
[420335289,1775989832731,-475.3,0.00013114,2]
[420335290,1775989832742,-171.6633,0.000132,2]
[420335291,1775989832758,-475.3,0.00013489,2]
[420335292,1775989832770,-475.3,0.00013863,2]
[420335293,1775989832785,-166.66,0.00014058,2]
[420335294,1775989832794,-475.3,0.00014238,2]
[420335295,1775989832809,-300.0,0.00014284,2]
[420335296,1775989832826,-622.0,0.00014284,2]
[420335297,1775989832836,-1069.5632648,0.00014285,2]
[420335298,1775989832886,-970.31793558,0.00014285,2]
[420335299,1775989838770,-11733.26879962,0.00014285,2]
[420335301,1775989838780,-166.66,0.00014354,2]
[420335302,1775989838790,-150.0,0.000144,2]
[420335303,1775989838814,-150.0,0.000144,2]
[420335304,1775989838823,-150.0,0.000144,2]
[420335305,1775989838833,-150.0,0.000144,2]
[420335306,1775989838855,-150.0,0.000144,2]
[420335307,1775989838864,-150.0,0.000144,2]
[420335308,1775989838874,-150.0,0.000144,2]
[420335309,1775989838890,-196.4552,0.000145,2]
[420335310,1775989838902,-166.66,0.0001465,2]
[420335311,1775989838913,-1348.0,0.00014712,2]
[420335312,1775989838923,-6025.0,0.00014712,2]
[420335313,1775989838935,-1600.0,0.0001484,2]
[420335314,1775989838948,-2500.0,0.00014898,2]
[420335315,1775989838961,-3101.1162066,0.00014899,2]
[420335316,1775989838973,-546.18496268,0.00014902,2]
[420335317,1775989839066,-355.710055,0.00014902,2]
[420335335,1775989840422,-301.92197159,0.00014902,2]
[420335345,1775989840670,-274.77301073,0.00014902,2]
[420335346,1775989840679,-150.0,0.00014933,2]
[420335347,1775989840694,-150.0,0.00014933,2]
[420335348,1775989840714,-150.0,0.00014933,2]
[420335349,1775989840726,-166.66,0.00014946,2]
[420335350,1775989840760,-500.0,0.00014973,2]
[420335351,1775989840770,-500.0,0.00014997,2]
[420335352,1775989840787,-150.0,0.00014997,2]
[420335353,1775989840805,-614.67985541,0.00014997,2]
[420335354,1775989840816,-500.0,0.00014997,2]
[420335355,1775989840835,-177.14446504,0.00014997,2]
[420335356,1775989840851,-180.11995424,0.00014997,2]
[420335357,1775989840863,-25458.74326098,0.00014998,2]
[420335358,1775989840890,-331.79488458,0.00014998,2]
[420335359,1775989841129,-522.9232407,0.00014998,2]
[420335360,1775989841215,-2851.43843768,0.00014998,2]
[420335361,1775989841227,-509.65562623,0.00014998,2]
[420335362,1775989841258,-9529.48997746,0.00014998,2]
[420335369,1775989843335,-1733.59562206,0.00014998,2]
[420335370,1775989843414,-9580.97694113,0.00014998,2]
[420335371,1775989843558,-8173.16165525,0.00014998,2]
[420335382,1775989846031,-6652.6257094,0.00014998,2]
[420335383,1775989846410,-294.34071958,0.00014998,2]
[420335384,1775989846429,-43456.33965862,0.00014998,2]
[420335385,1775989846441,-129537.52696633,0.00014998,2]
[420335386,1775989846450,-500.0,0.00014999,2]
[420335387,1775989846463,-616.43553704,0.00014999,2]
[420335388,1775989846474,-276.27891032,0.00014999,2]
[420335389,1775989846483,-1000.0,0.00015,2]
[420335390,1775989846494,-300.0,0.00015,2]
[420335391,1775989846510,-301.78780222,0.00015104,2]
[420335392,1775989846522,-659.4,0.00015146,2]
[420335393,1775989846532,-578.20924308,0.00015199,2]
[420335394,1775989846551,-200.0,0.00015199,2]
[420335395,1775989846565,-1328.27659266,0.00015199,2]
[420335396,1775989846579,-166.66,0.00015242,2]
[420335398,1775989846594,-263.51463478,0.0001532,2]
[420335399,1775989846607,-293.34699036,0.0001532,2]
[420335400,1775989846620,-3526.0,0.00015378,2]
[420335401,1775989846631,-150.0,0.00015467,2]
[420335402,1775989846645,-150.0,0.00015467,2]
[420335404,1775989846655,-150.0,0.00015467,2]
[420335406,1775989846667,-737.93,0.00015471,2]
[420335408,1775989846686,-408.74,0.00015471,2]
[420335410,1775989846695,-4000.0,0.00015507,2]
[420335412,1775989846709,-503.58504505,0.00015521,2]
[420335414,1775989846726,-166.66,0.00015538,2]
[420335416,1775989846737,-420.0,0.00015645,2]
[420335418,1775989846750,-1478.59,0.00015648,2]
[420335420,1775989846766,-2739.26232999,0.0001568,2]
[420335422,1775989846777,-224.8277,0.000157,2]
[420335424,1775989846791,-1377.42282659,0.00015747,2]
[420335426,1775989846806,-462.97267,0.0001584,2]
[420335427,1775989846819,-462.97268,0.0001584,2]
[420335429,1775989846837,-462.97268,0.0001585,2]
[420335431,1775989846853,-500.0,0.00015872,2]
[420335433,1775989846870,-4000.0,0.00015895,2]
[420335435,1775989846883,-970.051,0.000159,2]
[420335437,1775989846898,-5000.0,0.000159,2]
[420335439,1775989846911,-174.7115833,0.000159,2]
[420335442,1775989846925,-211.71146502,0.000159,2]
[420335444,1775989846942,-1883.73481177,0.000159,2]
[420335445,1775989846954,-4843.89333864,0.000159,2]
[420335448,1775989846969,-838.619343,0.000159,2]
[420335449,1775989846982,-3455.8486171,0.00015912,2]
[420335451,1775989846991,-500.0,0.00015973,2]
[420335453,1775989847008,-279.36866679,0.00015973,2]
[420335454,1775989847021,-500.0,0.00015973,2]
[420335455,1775989847032,-248.0359991,0.0001599,2]
[420335456,1775989847050,-666.0,0.00015999,2]
[420335457,1775989847063,-150.0,0.00015999,2]
[420335458,1775989847073,-500.0,0.00015999,2]
[420335459,1775989847087,-500.0,0.00015999,2]
[420335460,1775989847103,-500.0,0.00015999,2]
[420335461,1775989847116,-500.0,0.00015999,2]
[420335462,1775989847126,-500.0,0.00015999,2]
[420335463,1775989847147,-500.0,0.00015999,2]
[420335464,1775989847157,-500.0,0.00015999,2]
[420335465,1775989847166,-500.0,0.00015999,2]
[420335466,1775989847188,-517.0,0.00016,5]
[420335469,1775989847198,-413.0,0.00016,5]
[420335471,1775989847207,-150.0,0.00016,2]
[420335472,1775989847219,-150.0,0.00016,2]
[420335474,1775989847236,-150.0,0.00016,2]
[420335476,1775989847248,-51251.03154372,0.00016,2]
[420335478,1775989847263,-7320.17070373,0.00016,2]
[420335482,1775989847296,-2460.55421453,0.00016,2]
[420335484,1775989847313,-442.96,0.00016,2]
[420335718,1775990061498,375.0,0.00030136,120]
[420335719,1775990063019,375.0,0.00030136,120]
[420335720,1775990063257,375.0,0.00030136,120]
[420335721,1775990063929,375.0,0.00030136,120]
[420335722,1775990064242,375.0,0.00030136,120]
[420335723,1775990064750,375.0,0.00030136,120]
[420335724,1775990065949,375.0,0.00030136,120]
[420335725,1775990066143,375.0,0.00030136,120]
[420335726,1775990066508,375.0,0.00030136,120]
[420335727,1775990067022,375.0,0.00030136,120]
[420335728,1775990068087,375.0,0.00030136,120]
[420335729,1775990068810,375.0,0.00030136,120]
[420335730,1775990068958,375.0,0.00030136,120]
[420335731,1775990069401,375.0,0.00030136,120]
[420335732,1775990069836,375.0,0.00030136,120]
[420335733,1775990070278,375.0,0.00030136,120]
[420335734,1775990071032,375.0,0.00030136,120]
[420335735,1775990071241,375.0,0.00030136,120]
[420335736,1775990071755,375.0,0.00030136,120]
[420335737,1775990072199,375.0,0.00030136,120]
[420335738,1775990072511,375.0,0.00030136,120]
[420335739,1775990072979,375.0,0.00030136,120]
[420335740,1775990073487,375.0,0.00030136,120]
[420335741,1775990073844,375.0,0.00030136,120]
[420335742,1775990074311,375.0,0.00030136,120]
[420335743,1775990074763,375.0,0.00030136,120]
[420335744,1775990075268,375.0,0.00030136,120]
[420335745,1775990075735,375.0,0.00030136,120]
[420335746,1775990077421,375.0,0.00030136,120]
[420335747,1775990077677,375.0,0.00030136,120]
[420335748,1775990077815,375.0,0.00030136,120]
[420335749,1775990077937,375.0,0.00030136,120]
[420335750,1775990078056,375.0,0.00030136,120]
[420335751,1775990078430,375.0,0.00030136,120]
[420335752,1775990078881,375.0,0.00030136,120]
[420335753,1775990079344,375.0,0.00030136,120]
[420335754,1775990079880,375.0,0.00030136,120]
[420335755,1775990080266,375.0,0.00030136,120]
[420335756,1775990080743,375.0,0.00030136,120]
[420335757,1775990081183,375.0,0.00030136,120]
[420335758,1775990081665,375.0,0.00030136,120]
[420335759,1775990082124,375.0,0.00030136,120]
[420335760,1775990082598,375.0,0.00030136,120]
[420335761,1775990083131,375.0,0.00030136,120]
[420335762,1775990083423,375.0,0.00030136,120]
[420335763,1775990083941,375.0,0.00030136,120]
[420335764,1775990084412,375.0,0.00030136,120]
[420335765,1775990084801,375.0,0.00030136,120]
[420335766,1775990085205,375.0,0.00030136,120]
[420335767,1775990085698,375.0,0.00030136,120]
[420335768,1775990086105,375.0,0.00030136,120]
[420335769,1775990086547,375.0,0.00030136,120]
[420335770,1775990086929,375.0,0.00030136,120]
[420335771,1775990088593,375.0,0.00030136,120]
[420335772,1775990088868,375.0,0.00030136,120]
[420335773,1775990088925,375.0,0.00030136,120]
[420335774,1775990089367,375.0,0.00030136,120]
[420335775,1775990089789,375.0,0.00030136,120]
[420335776,1775990090278,375.0,0.00030136,120]
[420335777,1775990091090,375.0,0.00030136,120]
[420335778,1775990091473,375.0,0.00030136,120]
[420335779,1775990091926,375.0,0.00030136,120]
[420335780,1775990092394,375.0,0.00030136,120]
[420335781,1775990093433,375.0,0.00030136,120]
[420335782,1775990093920,375.0,0.00030136,120]
[420335783,1775990094353,375.0,0.00030136,120]
[420335784,1775990094794,375.0,0.00030136,120]
[420335785,1775990095276,375.0,0.00030136,120]
[420335786,1775990095675,375.0,0.00030136,120]
[420335787,1775990096130,375.0,0.00030136,120]
[420335788,1775990096635,375.0,0.00030136,120]
[420335789,1775990097057,375.0,0.00030136,120]
[420335790,1775990097511,375.0,0.00030136,120]
[420335791,1775990097982,375.0,0.00030136,120]
[420335792,1775990099865,375.0,0.00030136,120]
[420335793,1775990100039,375.0,0.00030136,120]
[420335794,1775990100094,375.0,0.00030136,120]
[420335795,1775990100141,375.0,0.00030136,120]
[420335796,1775990100379,375.0,0.00030136,120]
[420335797,1775990100981,375.0,0.00030136,120]
[420335798,1775990419545,232.0,0.00025,120]
[420335801,1775990791858,21848.95,0.00030136,120]
[420335803,1775991032413,-694.0,0.00014399,2]
[420335804,1775991032423,-150.0,0.000144,2]
[420335805,1775991032439,-150.0,0.000144,2]
[420335806,1775991032450,-150.00000001,0.000144,2]
[420335807,1775991032461,-150.0,0.000144,2]
[420335809,1775991032478,-150.0,0.000144,2]
[420335811,1775991032489,-150.0,0.000144,2]
[420335813,1775991032505,-29.11679655,0.00014407,2]
[420335815,1775991032521,-2241.31320345,0.00014407,2]
[420335817,1775991032538,-300.0,0.00014459,2]
[420335819,1775991032550,-1896.69356978,0.0001446,2]
[420335822,1775991032572,-2779.38643022,0.0001446,2]
[420335823,1775991032587,-151.0,0.0001454,2]
[420335825,1775991032596,-200.0,0.00014549,2]
[420335827,1775991032616,-2469.21967785,0.00014599,2]
[420335830,1775991032635,-770.78032215,0.00014599,2]
[420335833,1775991032644,-150.0,0.00014674,2]
[420335836,1775991032674,-150.0,0.00014798,2]
[420335839,1775991032685,-1389.34712051,0.00014798,2]
[420335842,1775991032706,-301.30272746,0.00014798,2]
[420335843,1775991032743,-34.01183802,0.00014798,2]
[420335846,1775991032763,-1065.2223718,0.00014798,2]
[420335848,1775991032796,-2114.8037051,0.00014798,2]
[420335851,1775991032814,-1813.75681653,0.00014798,2]
[420335852,1775991032831,-358.03576774,0.00014826,2]
[420335853,1775991032846,-390.37271931,0.00014826,2]
[420335854,1775991032885,-500.0,0.00014826,2]
[420335855,1775991032901,-751.59151295,0.00014826,2]
[420335856,1775991032912,-6459.40848705,0.00014888,2]
[420335857,1775991032924,-7929.10989743,0.00014888,2]
[420335858,1775991032936,-150.0,0.00014896,2]
[420335859,1775991032945,-299.97138146,0.00014897,2]
[420335860,1775991032957,-500.0,0.00014897,2]
[420335861,1775991032966,-307.70535415,0.00014897,2]
[420335862,1775991032979,-500.0,0.00014897,2]
[420335863,1775991032990,-500.0,0.00014897,2]
[420335864,1775991032999,-500.0,0.00014897,2]
[420335865,1775991033010,-500.0,0.00014897,2]
[420335866,1775991033023,-500.0,0.00014897,2]
[420335867,1775991033048,-500.0,0.00014897,2]
[420335868,1775991033057,-56.14516479,0.00014897,2]
[420335869,1775991033082,-443.85483521,0.00014897,2]
[420335870,1775991033096,-83.52455479,0.00014897,2]
[420335871,1775991033107,-416.47544521,0.00014897,2]
[420335872,1775991033121,-500.0,0.00014897,2]
[420335873,1775991033140,-313.74455479,0.00014897,2]
[420335877,1775991038499,-186.25544521,0.00014897,2]
[420335878,1775991038535,-122.63169373,0.00014897,2]
[420335879,1775991038582,-377.36830627,0.00014897,2]
[420335880,1775991038627,-24.24790873,0.00014897,2]
[420335881,1775991038654,-452.72668511,0.00014897,2]
[420335882,1775991038679,-23.02540616,0.00014897,2]
[420335883,1775991038715,-500.0,0.00014897,2]
[420335884,1775991038732,-500.0,0.00014897,2]
[420335885,1775991038754,-500.0,0.00014897,2]
[420335886,1775991038780,-500.0,0.00014897,2]
[420335887,1775991038798,-500.0,0.00014897,2]
[420335888,1775991038819,-500.0,0.00014897,2]
[420335890,1775991038843,-500.0,0.00014897,2]
[420335893,1775991038859,-500.11526413,0.00014897,2]
[420335895,1775991038881,-500.0,0.00014897,2]
[420335898,1775991038898,-500.0,0.00014897,2]
[420335900,1775991038927,-500.0,0.00014897,2]
[420335903,1775991038942,-500.0,0.00014897,2]
[420335905,1775991038967,-500.0,0.00014897,2]
[420335907,1775991038985,-500.0,0.00014897,2]
[420335909,1775991039007,-500.0,0.00014897,2]
[420335912,1775991039028,-193.68166952,0.00014897,2]
[420335914,1775991039060,-500.0,0.00014897,2]
[420335917,1775991039074,-322.55915279,0.00014897,2]
[420335920,1775991039105,-177.44084721,0.00014897,2]
[420335922,1775991039123,-500.0,0.00014897,2]
[420335925,1775991039147,-500.0,0.00014897,2]
[420335927,1775991039163,-500.0,0.00014897,2]
[420335930,1775991039190,-420.48915279,0.00014898,2]
[420335934,1775991039217,-347.24338275,0.00014898,2]
[420335937,1775991039244,-89704.61608844,0.00014898,2]
[420335957,1775991040584,-461.38777926,0.00014797,2]
[420335958,1775991040626,-280.2460948,0.00014797,2]
[420335959,1775991040670,-943.78799,0.00014797,2]
[420335960,1775991040688,-7416.26013594,0.00014797,2]
[420335961,1775991040717,-1000.0,0.00014898,2]
[420335962,1775991040735,-1378.27,0.00014961,2]
[420335963,1775991040758,-165.13,0.0001508,2]
[420335964,1775991040790,-395.63767726,0.00015104,2]
[420335965,1775991040809,-478.02159786,0.00015199,2]
[420335966,1775991040833,-8882.6885148,0.00015199,2]
[420335967,1775991040851,-1328.27659266,0.00015199,2]
[420335968,1775991040869,-150.0,0.000152,2]
[420335969,1775991040904,-150.0,0.000152,2]
[420335970,1775991040917,-4046.46278351,0.00015254,2]
[420335971,1775991041293,-1766.44374432,0.00015254,2]
[420335972,1775991041309,-623.827,0.00015488,2]
[420335973,1775991041323,-1348.0,0.00015488,2]
[420335974,1775991041340,-671.786,0.00015488,2]
[420335975,1775991041367,-1226.586,0.00015488,2]
[420335976,1775991041379,-931.642,0.00015488,2]
[420335977,1775991041392,-2472.0,0.00015488,2]
[420335979,1775991041418,-377.652,0.00015488,2]
[420335981,1775991041430,-435.697,0.00015488,2]
[420335983,1775991041449,-1158.3856905,0.0001568,2]
[420335985,1775991041463,-150.0,0.00015746,2]
[420335987,1775991041483,-1377.42282659,0.00015747,2]
[420335988,1775991041495,-1055.0,0.00015797,2]
[420335989,1775991041510,-420.0,0.00015833,2]
[420335990,1775991041526,-231.48633,0.0001584,2]
[420335991,1775991041539,-231.48634,0.0001584,2]
[420335992,1775991041555,-231.48634,0.0001585,2]
[420335993,1775991041572,-2000.0,0.0001589,2]
[420335994,1775991041588,-5000.0,0.000159,2]
[420335995,1775991041602,-698.8494525,0.000159,2]
[420335996,1775991041629,-181.46697,0.000159,2]
[420335997,1775991041644,-943.1606268,0.0001591,2]
[420335998,1775991041659,-776.041,0.00015934,2]
[420335999,1775991041677,-250.0,0.00015945,2]
[420336000,1775991041693,-200.0,0.00015945,2]
[420336001,1775991041705,-361.0,0.00015946,2]
[420336002,1775991041743,-500.0,0.00015973,2]
[420336003,1775991041766,-500.0,0.00015973,2]
[420336004,1775991041788,-1055.0,0.00015982,2]
[420336005,1775991041807,-713.48685204,0.00015999,2]
[420336006,1775991041841,-150.0,0.00015999,2]
[420336007,1775991041856,-500.0,0.00015999,2]
[420336008,1775991041885,-500.0,0.00015999,2]
[420336009,1775991041897,-500.0,0.00015999,2]
[420336010,1775991041928,-500.0,0.00015999,2]
[420336011,1775991041953,-500.0,0.00015999,2]
[420336012,1775991041966,-500.0,0.00015999,2]
[420336013,1775991041985,-500.0,0.00015999,2]
[420336014,1775991042002,-529.76,0.00015999,2]
[420336015,1775991042024,-329.0,0.00016,5]
[420336016,1775991042042,-267.0,0.00016,5]
[420336017,1775991042056,-150.0,0.00016,2]
[420336018,1775991042068,-150.0,0.00016,2]
[420336019,1775991042086,-150.0,0.00016,2]
[420336020,1775991042102,-6914.38098132,0.00016,2]
[420336032,1775991044553,-8129.4466338,0.00016,2]
[420336033,1775991046228,-4549.03807851,0.00016,2]
[420336035,1775991046243,-952.94147243,0.00016,2]
[420336036,1775991046254,-4164.29658714,0.00016,2]
[420336037,1775991046593,-1035.08389315,0.00016,2]
[420336038,1775991046793,-92943.14801624,0.00016,2]
[420336039,1775991046806,-603.37735071,0.00016,2]
[420336041,1775991046833,-27799.05538591,0.00016,2]
[420336042,1775991046842,-2000.0,0.00016,2]
[420336043,1775991046851,-43963.35019922,0.00016,2]
[420336044,1775991046876,-525.568331,0.00016,2]
[420336050,1775991318874,231.0,0.00027242,120]
[420336051,1775991556016,174.0,0.00026849,120]
[420336052,1775991603663,168.0,0.00026234,120]
[420336056,1775991854087,280.0,0.00025479,120]
[420336057,1775991975988,162.0,0.00025,120]
[420336058,1775992148552,600.0,0.0003,120]
[420336078,1775992233975,-250.0,0.00013,2]
[420336080,1775992233986,-47.09726502,0.00013,2]
[420336085,1775992234104,-287.90273498,0.00013,2]
[420336087,1775992234122,-1200.0,0.00014251,2]
[420336089,1775992234155,-506.0,0.00014251,2]
[420336091,1775992234165,-300.0,0.00014251,2]
[420336093,1775992234181,-2500.0,0.00014252,2]
[420336095,1775992234209,-2500.0,0.00014252,2]
[420336097,1775992234218,-2593.52155462,0.00014252,2]
[420336099,1775992234258,-2500.0,0.000143,2]
[420336101,1775992234267,-2500.0,0.000143,2]
[420336102,1775992234293,-300.0,0.000143,2]
[420336104,1775992234332,-1600.0,0.00014568,2]
[420336107,1775992234366,-150.0,0.00014696,2]
[420336108,1775992234377,-3724.79435169,0.00014697,2]
[420336110,1775992234427,-329.7,0.00014708,2]
[420336112,1775992234438,-500.0,0.00014773,2]
[420336115,1775992234454,-500.0,0.00014773,2]
[420336117,1775992234479,-200.0,0.00014788,2]
[420336118,1775992234491,-1559.24,0.00014795,2]
[420336120,1775992234537,-500.0,0.00014796,2]
[420336121,1775992234555,-500.0,0.00014796,2]
[420336122,1775992234581,-257.55501913,0.00014796,2]